fUSD/lending_fUSD_20250116
["ID","MTS","AMOUNT","RATE_DAILY","PERIOD"]
[349229220,1737048637854,-3784.80621371,0.00037,30]
[349229223,1737048637866,-3123.54115014,0.00037,30]
[349229364,1737048639733,-4503.99768008,0.00037,30]
[349229365,1737048639745,-24432.97700115,0.00037,30]
[349229366,1737048639756,-1027.43750262,0.00037,30]
[349229367,1737048639768,-1363.68834929,0.00037,30]
[349229368,1737048639780,-14087.72181227,0.00037,30]
[349229369,1737048639791,-301.92197159,0.00037,30]
[349229370,1737048639802,-23862.09118534,0.00037,30]
[349229371,1737048639813,-277.209,0.00037,30]
[349229372,1737048639825,-340.39927,0.00037,30]
[349229373,1737048639849,-518.424,0.00037,30]
[349229374,1737048639862,-262.11671833,0.00037,30]
[349229375,1737048639876,-163192.80006393,0.00037,30]
[349229376,1737048640038,-548.00952576,0.00037,30]
[349229377,1737048640051,-2455.59776333,0.00037,30]
[349229378,1737048640063,-1453.7,0.00037,30]
[349229379,1737048640075,-2295.0,0.00037,30]
[349229380,1737048640088,-59625.87705291,0.00037,30]
[349229381,1737048640124,-2793.02318066,0.00037,30]
[349229382,1737048640136,-18723.03272397,0.00037,30]
[349229383,1737048640148,-372.7299999,0.00037,30]
[349229384,1737048640160,-374.11,0.00037,30]
[349229385,1737048640172,-336.61,0.00037,30]
[349229387,1737048640183,-614.63000001,0.00037,30]
[349229389,1737048640194,-251.24,0.00037,30]
[349229392,1737048640206,-422.06048354,0.00037,30]
[349229394,1737048640218,-2646.33936361,0.00037,30]
[349229396,1737048640229,-511.2152343,0.00037,30]
[349229398,1737048640241,-448.12608553,0.00037,30]
[349229401,1737048640264,-564.6989879,0.00037,30]
[349229404,1737048640275,-672.281894,0.00037,30]
[349229406,1737048640287,-2034.52399846,0.00037,30]
[349229411,1737048640323,-1169.83199999,0.00037,30]
[349229413,1737048640335,-29277.51214078,0.00037,30]
[349229416,1737048640347,-185077.89418086,0.00037,30]
[349229419,1737048640359,-1772.84939215,0.00037,30]
[349229420,1737048640372,-236915.29405043,0.00037,30]
[349229455,1737048642722,-1665.4192,0.00037,30]
[349229458,1737048642741,-334.14,0.00037,30]
[349229461,1737048642758,-994.36,0.00037,30]
[349229464,1737048642783,-849.413,0.00037,30]
[349229471,1737048642844,-2981.22,0.00037,30]
[349229475,1737048642905,-4434.31379295,0.00037,30]
[349229582,1737048645557,-226.56153859,0.000369,9]
[349229583,1737048645572,-2151.95858839,0.00037,30]
[349229584,1737048645687,-288.2830045,0.00037,30]
[349229585,1737048645750,-1373.0527715,0.00037,30]
[349229586,1737048645817,-4996.75078065,0.00037,30]
[349229589,1737048649164,165.66,0.00010137,2]
[349229591,1737049529070,153.81,0.00010137,2]
[349229593,1737049639101,-300.0,0.00011699,2]
[349229594,1737049639124,-153.71874109,0.000117,2]
[349229596,1737049653122,-166.66666666,0.000116,2]
[349229597,1737049653144,-2.9611911,0.000117,2]
[349229598,1737049653165,-161.46847612,0.000117,2]
[349229599,1737049653186,-14.34086919,0.00011753,2]
[349229600,1737049746110,-17137.9121,0.000117,2]
[349229601,1737049746133,-135.65913081,0.00011753,2]
[349229602,1737049746154,-500.0,0.00011773,2]
[349229603,1737049746175,-500.59236816,0.00011773,2]
[349229604,1737049746196,-151.92418855,0.00011773,2]
[349229605,1737049746216,-152.92176139,0.00011773,2]
[349229606,1737049746238,-150.92083718,0.00011773,2]
[349229607,1737049746259,-151.91745924,0.00011773,2]
[349229608,1737049746285,-587.41979236,0.00011773,2]
[349229609,1737049746309,-500.18752387,0.00011773,2]
[349229610,1737049746330,-199.78739084,0.00011773,2]
[349229611,1737049746354,-500.0,0.00011773,2]
[349229612,1737049746375,-325.50559929,0.00011773,2]
[349229613,1737049746396,-151.0,0.00011793,2]
[349229614,1737049746420,-150.0,0.00011799,2]
[349229615,1737049746441,-187.18568073,0.000118,2]
[349229616,1737049746462,-191.67432926,0.000118,2]
[349229617,1737049746483,-1000.0,0.00012321,2]
[349229618,1737049746505,-183.01,0.00012329,2]
[349229619,1737049746527,-300.34983088,0.00012341,2]
[349229620,1737049746548,-255.0,0.00012873,2]
[349229621,1737049746569,-433.0,0.00014041,2]
[349229622,1737049746590,-736.0,0.00015327,2]
[349229623,1737049746616,-500.0,0.00015506,2]
[349229624,1737049746637,-476.0,0.00016719,2]
[349229625,1737049746663,-153.81,0.00017599,2]
[349229626,1737049746684,-2663.019,0.00019086,2]
[349229627,1737049746705,-191.426,0.00019086,2]
[349229628,1737049746727,-168.26,0.0002047,2]
[349229629,1737049746748,-164.04,0.00020615,2]
[349229630,1737049746768,-5061.13938055,0.00022562,2]
[349229631,1737049755383,-4938.85061945,0.00022562,2]
[349229632,1737049755405,-999.99,0.00022562,2]
[349229633,1737049755427,-299.99,0.00022562,7]
[349229634,1737049755449,-1005.99,0.00022562,2]
[349229635,1737049755471,-1265.38932655,0.00022562,2]
[349229636,1737049763816,-187.04809142,0.00011653,2]
[349229637,1737049763837,-1095.16305311,0.00022562,2]
[349229638,1737049771098,-479.7735,0.000117,2]
[349229639,1737049771120,-1033.08376447,0.00022562,2]
[349229648,1737049831744,-900.0,0.00022562,2]
[349229649,1737049831823,-413.21193929,0.00022562,2]
[349229650,1737049831841,-1071.52999766,0.00022562,2]
[349229651,1737049831930,-1905.92084559,0.00022562,2]
[349229652,1737049831942,-7461.91580602,0.00022562,2]
[349229653,1737049831954,-920.43327321,0.00022562,2]
[349229654,1737049831965,-1068.40951956,0.00022562,2]
[349229655,1737049831977,-804.01482,0.00022562,2]
[349229656,1737049832001,-55544.73597503,0.00022562,2]
[349229657,1737049832013,-17922.07167951,0.00022562,2]
[349229658,1737049832023,-52956.4836292,0.00022562,2]
[349229659,1737049832035,-245989.3533478,0.00022562,2]
[349229660,1737049832045,-3244.58889752,0.00023268,2]
[349229661,1737049832054,-202.9,0.00023318,30]
[349229662,1737049832064,-1947.6947,0.00023342,10]
[349229663,1737049832074,-3244.5888975,0.00024783,2]
[349229664,1737049832083,-500.0,0.00024907,2]
[349229665,1737049832092,-153.81,0.0002506,2]
[349229666,1737049832102,-1000.0,0.00025387,2]
[349229667,1737049832112,-845.93,0.00025576,2]
[349229668,1737049832122,-428.11,0.00025588,2]
[349229669,1737049832131,-224.03,0.00025613,2]
[349229670,1737049832141,-2000.0,0.00025763,120]
[349229671,1737049832150,-226.56153859,0.00025864,2]
[349229672,1737049832164,-179.98,0.00025964,2]
[349229673,1737049832173,-4023.58,0.00025964,2]
[349229674,1737049832183,-300.0,0.00026106,2]
[349229675,1737049832193,-250.0,0.00026106,2]
[349229676,1737049832202,-3244.5888975,0.00026297,2]
[349229677,1737049832212,-1592.11,0.0002674,120]
[349229678,1737049832222,-550.0,0.00027,2]
[349229679,1737049832232,-250.0,0.00027353,2]
[349229680,1737049832242,-183.01,0.00027397,2]
[349229681,1737049832252,-3244.5888975,0.00027812,2]
[349229682,1737049832264,-1187.98,0.00028134,2]
[349229683,1737049832274,-413.24,0.00028159,2]
[349229684,1737049832284,-1000.0,0.0002856,2]
[349229685,1737049832294,-600.0,0.00029,2]
[349229686,1737049832304,-3244.5888975,0.00029327,2]
[349229687,1737049832313,-23900.0,0.00029475,2]
[349229688,1737049832323,-10869.85,0.0002957,2]
[349229689,1737049832333,-151.0,0.0003,120]
[349229690,1737049832344,-157.103,0.0003005,120]
[349229691,1737049832353,-1592.11,0.00030082,120]
[349229692,1737049832362,-1187.98,0.00030398,2]
[349229693,1737049832372,-3244.5888975,0.00030841,2]
[349229694,1737049832382,-179.98,0.00031157,2]
[349229696,1737049832391,-21537.26,0.00031285,2]
[349229698,1737049832401,-1000.0,0.00031733,2]
[349229700,1737049832413,-3170.0,0.000321,5]
[349229701,1737049832422,-3244.5888975,0.00032356,2]
[349229702,1737049832432,-153.81,0.00032522,2]
[349229703,1737049832442,-1187.98,0.00032662,2]
[349229704,1737049832452,-1592.11,0.00033425,120]
[349229705,1737049832462,-151.0,0.00033753,120]
[349229706,1737049832472,-250.0,0.00033784,2]
[349229707,1737049832483,-3244.5888975,0.00033871,2]
[349229708,1737049832493,-157.054,0.0003405,120]
[349229709,1737049832503,-150.0,0.00034548,10]
[349229710,1737049832512,-200.0,0.00034753,2]
[349229711,1737049832522,-1000.0,0.00034906,2]
[349229712,1737049832533,-1187.98,0.00034926,2]
[349229715,1737049832543,-486.871,0.00035181,2]
[349229717,1737049832554,-95891.89194501,0.00035281,2]
[349229719,1737049832563,-504.11522774,0.00035281,7]
[349229721,1737049832573,-3244.5888975,0.00035385,2]
[349229723,1737049832583,-165.66,0.00035507,2]
[349229725,1737049832593,-47442.0,0.00035758,2]
[349229727,1737049832603,-389.7735494,0.00036259,4]
[349229729,1737049832612,-500.0,0.00036376,60]
[349229731,1737049832622,-1000.0,0.00036376,60]
[349229733,1737049832631,-2400.0,0.00036376,60]
[349229735,1737049832641,-300.0,0.00036438,2]
[349229737,1737049832651,-150.0,0.00036438,2]
[349229740,1737049832663,-150.0,0.00036438,2]
[349229743,1737049832673,-150.0,0.00036438,2]
[349229746,1737049832682,-150.0,0.00036438,2]
[349229749,1737049832692,-437.34,0.00036438,2]
[349229752,1737049832702,-437.34,0.00036438,2]
[349229754,1737049832711,-150.0,0.00036438,2]
[349229756,1737049832721,-437.34,0.00036438,2]
[349229758,1737049832730,-348.97,0.00036438,2]
[349229760,1737049832739,-150.0,0.00036438,2]
[349229762,1737049832749,-150.0,0.00036438,2]
[349229764,1737049832759,-1440.64539092,0.000365,120]
[349229768,1737049832784,-1221.47,0.000365,120]
[349229770,1737049832796,-600.0,0.000365,120]
[349229808,1737049833153,-479.3635473,0.000365,120]
[349229810,1737049833168,-1239.35,0.000365,120]
[349229813,1737049833189,-19.17106178,0.000365,120]
[349229815,1737049833199,-284.00813822,0.0003663,2]
[349229817,1737049833211,-1945.55950178,0.0003663,2]
[349229819,1737049833220,-362.78197086,0.00036767,120]
[349229821,1737049833232,-1229.32802914,0.00036767,120]
[349229824,1737049833242,-876.16,0.00036849,2]
[349229826,1737049833252,-876.16,0.00036849,2]
[349229828,1737049833263,-30000.0,0.00036892,30]
[349229830,1737049833273,-161.79765904,0.000369,2]
[349229831,1737049833282,-20709.23968205,0.000369,120]
[349229834,1737049833293,-3244.5888975,0.000369,2]
[349229836,1737049833304,-1000.0,0.00036924,60]
[349229838,1737049833314,-2400.0,0.00036924,60]
[349229840,1737049833323,-7884.0,0.00036959,120]
[349229842,1737049833333,-500.0,0.00036973,5]
[349229843,1737049833343,-776.73196068,0.0003699,2]
[349229846,1737049833353,-776.73196068,0.0003699,2]
[349229848,1737049833368,-776.73196068,0.0003699,2]
[349229849,1737049833378,-666.0,0.00036999,10]
[349229852,1737049833388,-1000.0,0.00036999,2]
[349229854,1737049833398,-1341.685354,0.00036999,14]
[349229856,1737049833413,-500.0,0.00036999,7]
[349229858,1737049833424,-5407.5388963,0.00037,4]
[349229860,1737049833436,-126412.60718144,0.00037,4]
[349229862,1737049833449,-1499.89000012,0.00037,4]
[349230285,1737049837815,-737.94291166,0.00036892,30]
[349230287,1737049837829,-941.57868834,0.00037,4]
[349230290,1737049837846,-6413.30282349,0.00037,4]
[349230292,1737049837858,-4849.99996427,0.00037,4]
[349230294,1737049837870,-8277.934682,0.00037,4]
[349230297,1737049837889,-17719.99997873,0.00037,4]
[349230299,1737049837901,-1578.625829,0.00037,4]
[349230302,1737049837914,-1511118.07820176,0.00037,4]
[349230304,1737049837924,-1833700.85298812,0.00037,30]
[349230306,1737049837942,-99593.88835872,0.00037,30]
[349230317,1737049838033,-28028.62447933,0.00037,30]
[349230320,1737049838054,-449.23479685,0.00037,30]
[349230322,1737049838066,-12272.4,0.00037,30]
[349230324,1737049838078,-23925.45102294,0.00037,30]
[349230326,1737049838089,-34765.43801094,0.00037,30]
[349230329,1737049838100,-1977.8158802,0.00037,30]
[349230332,1737049838125,-3003.6,0.00037,30]
[349230335,1737049838137,-19529.45663914,0.00037,30]
[349230337,1737049838150,-1689.90202718,0.00037,30]
[349230449,1737049839956,-291.36964339,0.00037,30]
[349230450,1737049839968,-953.8,0.00037,30]
[349230451,1737049839979,-693.36000001,0.00037,30]
[349230452,1737049840125,-546292.20410789,0.00037,30]
[349230453,1737049840136,-120173.07856769,0.00037,30]
[349230454,1737049840194,-202317.14782667,0.00037,30]
[349230455,1737049840206,-77917.21447529,0.00037,30]
[349230456,1737049840218,-25820.6240994,0.00037,30]
[349230457,1737049840230,-117523.6734315,0.00037,30]
[349230458,1737049840327,-862.3159344,0.00037,30]
[349230459,1737049840340,-982.45049282,0.00037,30]
[349230461,1737049840351,-20022.14515476,0.00037,30]
[349230463,1737049840363,-65085.27892453,0.00037,30]
[349230465,1737049840374,-583.33530112,0.00037,30]
[349230468,1737049840386,-926.89848615,0.00037,30]
[349230491,1737049842820,-2338021.74645059,0.00037,30]
[349230492,1737049842832,-13636.89355177,0.00037,30]
[349230493,1737049842851,-22322.03929,0.00037,30]
[349230494,1737049842863,-4422.2573921,0.00037,30]
[349230495,1737049842876,-564.01712814,0.00037,30]
[349230496,1737049842888,-2033.70692799,0.00037,30]
[349230497,1737049842935,-2417.74338737,0.00037,30]
[349230498,1737049842958,-25.62919463,0.00037,30]
[349230499,1737049842969,-672.32,0.00037,30]
[349230500,1737049842981,-1007.72726082,0.00037,30]
[349230501,1737049842993,-9653.80000013,0.00037,30]
[349230502,1737049843004,-1512.88856388,0.00037,30]
[349230503,1737049843015,-263.86867618,0.00037,30]
[349230504,1737049843027,-4717.6,0.00037,30]
[349230505,1737049843039,-731.38123461,0.00037,30]
[349230506,1737049843050,-637.5221,0.00037,30]
[349230507,1737049843062,-1164.90682513,0.00037,30]
[349230508,1737049843074,-3932.74721704,0.00037,30]
[349230509,1737049843090,-4245.22314852,0.00037,30]
[349230510,1737049843112,-14159.49802454,0.00037,30]
[349230511,1737049843124,-1660.0,0.00037,30]
[349230512,1737049843136,-308.11380428,0.00037,30]
[349230513,1737049843147,-833.87987711,0.00037,30]
[349230514,1737049843158,-12848.4148245,0.00037,30]
[349230515,1737049843170,-1341.47799,0.00037,30]
[349230516,1737049843182,-434.67999985,0.00037,30]
[349230517,1737049843194,-4703.65764075,0.00037,30]
[349230518,1737049843209,-730.07140233,0.00037,30]
[349230519,1737049843220,-652.62529538,0.00037,30]
[349230524,1737049845945,-1843.02522952,0.000369,2]
[349230525,1737049845956,-1346.60363188,0.000369,2]
[349230526,1737049845967,-2704.598,0.000369,2]
[349230527,1737049845979,-1685.01330001,0.000369,2]
[349230528,1737049845989,-1601.3993352,0.000369,2]
[349230529,1737049846001,-10758.82774051,0.000369,2]
[349230530,1737049846010,-140968.6100728,0.00037,30]
[349230531,1737049846021,-99142.64470279,0.00037,30]
[349230532,1737049846033,-918.0,0.00037,30]
[349230533,1737049846044,-418.18435819,0.00037,30]
[349230534,1737049846056,-1613.70970627,0.00037,30]
[349230535,1737049846068,-4402.35621788,0.00037,30]
[349230536,1737049846079,-657.40352768,0.00037,30]
[349230537,1737049846105,-78178.46605123,0.00037,30]
[349230538,1737049846116,-42025.59500107,0.00037,30]
[349230539,1737049846127,-3876.25222147,0.00037,30]
[349230540,1737049846139,-42217.3649194,0.00037,30]
[349230541,1737049846150,-1568.31468567,0.00037,30]
[349230542,1737049846161,-470.0,0.00037,30]
[349230543,1737049846173,-1009.0940635,0.00037,30]
[349230544,1737049846188,-90943.37067011,0.00037,30]
[349230545,1737049846209,-582.0,0.00037,30]
[349230546,1737049846223,-3085.69271603,0.00037,30]
[349230547,1737049846235,-2131.153454,0.00037,30]
[349230548,1737049846248,-3086.88552804,0.00037,30]
[349230549,1737049846260,-481.60679252,0.00037,30]
[349230550,1737049846342,-37.87736217,0.00037,30]
[349230551,1737049846354,-430451.37293476,0.00037,30]
[349230556,1737050478515,185.35,0.00010137,2]
[349230558,1737050837365,-550.0,0.00027,2]
[349230559,1737050837386,-166.66666666,0.0002937,2]
[349230560,1737050837410,-28.40711748,0.0002937,2]
[349230580,1737050959303,-550.80376193,0.00029369,2]
[349230581,1737050959337,-549.13372965,0.0002937,2]
[349230582,1737050959374,-300.0,0.00029469,2]
[349230583,1737050959410,-300.0,0.00029469,2]
[349230584,1737050959445,-136.9774216,0.0002947,2]
[349230585,1737050961112,-946.70880811,0.0002947,2]
[349230586,1737050962098,-4176.55707029,0.0002947,2]
[349230587,1737050962122,-500.0,0.0002947,2]
[349230588,1737050962144,-179.05162297,0.0002947,2]
[349230589,1737050962166,-3341.23546619,0.0002947,2]
[349230590,1737050962192,-1000.0,0.0003,2]
[349230591,1737050962215,-420.0,0.00031779,2]
[349230592,1737050962240,-420.0,0.00031779,3]
[349230612,1737051032255,-1135.46893316,0.00033458,2]
[349230613,1737051032266,-107.98106684,0.00033458,2]
[349230614,1737051032276,-150.0,0.00035175,2]
[349230615,1737051032285,-315.70893316,0.00035185,2]
[349230616,1737051032299,-559.95,0.00035185,2]
[349230617,1737051032310,-1298.34106684,0.00035185,2]
[349230618,1737051032319,-250.0,0.0003526,2]
[349230619,1737051032329,-23900.0,0.00035291,2]
[349230620,1737051032338,-7814.4833479,0.00035404,2]
[349230621,1737051032460,-4531.6266521,0.00035404,2]
[349230622,1737051032470,-590.78,0.0003543,2]
[349230623,1737051032479,-348.58,0.00035441,2]
[349230624,1737051032489,-660.0,0.00035469,2]
[349230625,1737051032499,-35912.27,0.0003547,2]
[349230626,1737051032508,-500.0,0.00035522,2]
[349230627,1737051032518,-374.59,0.00035529,120]
[349230628,1737051032527,-970.02,0.00035529,2]
[349230629,1737051032537,-1004.92,0.00035614,2]
[349230630,1737051032546,-1260.0,0.00035625,2]
[349230631,1737051032556,-906.0,0.00035625,2]
[349230632,1737051032565,-820.0,0.00035625,2]
[349230633,1737051032575,-2945.0,0.00035625,2]
[349230634,1737051032584,-537.0,0.00035625,2]
[349230635,1737051032594,-3980.0,0.00035625,2]
[349230636,1737051032604,-858.37,0.00035643,120]
[349230637,1737051032614,-1243.45,0.00035722,2]
[349230638,1737051032623,-200.0,0.00035737,2]
[349230639,1737051032633,-250.0,0.00035742,120]
[349230640,1737051032645,-2751.0,0.00035834,120]
[349230641,1737051032655,-2000.0,0.00035834,120]
[349230642,1737051032664,-333.72,0.0003597,3]
[349230643,1737051032674,-1000.0,0.0003597,2]
[349230644,1737051032684,-4381.26,0.00036017,2]
[349230645,1737051032693,-250.0,0.00036114,2]
[349230646,1737051032703,-4355.48,0.00036165,120]
[349230647,1737051032713,-437.34,0.00036178,2]
[349230648,1737051032723,-194.8867747,0.00036259,4]
[349230649,1737051032733,-900.0,0.00036376,60]
[349230650,1737051032743,-500.0,0.00036376,60]
[349230651,1737051032752,-150.0,0.00036378,2]
[349230652,1737051032762,-1008.32,0.00036488,9]
[349230653,1737051032772,-110343.90323576,0.00036698,120]
[349230654,1737051032782,-9108.1304613,0.00036701,120]
[349230655,1737051032791,-6088.14459035,0.00036704,120]
[349230656,1737051032801,-110343.90323576,0.00036711,120]
[349230657,1737051032812,-691543.76175046,0.00036713,120]
[349230658,1737051032824,-3090.44816829,0.00036713,120]
[349230659,1737051032835,-437.11199998,0.00036713,120]
[349230660,1737051032847,-600.0,0.00036713,120]
[349230661,1737051032859,-10521.36249905,0.00036713,120]
[349230662,1737051032869,-13267.25601255,0.00036716,120]
[349230663,1737051032879,-200.0,0.00036717,120]
[349230664,1737051032888,-281.39077542,0.00036718,120]
[349230665,1737051032899,-429.93842545,0.00036718,2]
[349230666,1737051032909,-1025.00009104,0.0003672,120]
[349230667,1737051032918,-281.39077542,0.00036721,120]
[349230668,1737051032928,-281.39077542,0.00036726,120]
[349230669,1737051032938,-108524.15760534,0.00036734,120]
[349230798,1737051037810,-11299.51392,0.00036734,120]
[349230817,1737051037986,-1434.45594264,0.00036734,120]
[349230820,1737051038006,-1430.79167302,0.00036734,120]
[349230823,1737051038017,-1771.28400005,0.00036734,120]
[349230825,1737051038028,-4993.05,0.00036734,120]
[349230827,1737051038040,-3799.93045815,0.00036734,120]
[349230837,1737051038121,-2682.394968,0.00036734,120]
[349230839,1737051038132,-11157.499999,0.00036734,120]
[349230846,1737051038190,-447.500003,0.00036734,120]
[349230884,1737051038508,-82.78597522,0.00036734,120]
[349230889,1737051038543,-2000.0,0.00035969,120]
[349230891,1737051038554,-558569.31987336,0.00036734,120]
[349230893,1737051038563,-9108.1304613,0.0003674,120]
[349230895,1737051038573,-200.0,0.00036742,120]
[349230897,1737051038583,-1025.00009104,0.00036743,120]
[349230899,1737051038592,-110343.90323576,0.00036745,120]
[349230901,1737051038601,-13456.71670797,0.00036746,120]
[349230903,1737051038610,-706192.68441778,0.00036747,120]
[349230905,1737051038620,-6088.14459035,0.00036753,120]
[349230907,1737051038629,-110343.90323576,0.00036755,120]
[349230909,1737051038638,-110343.90323576,0.00036766,120]
[349230911,1737051038648,-9108.1304613,0.00036776,120]
[349230913,1737051038657,-110343.90323576,0.00036778,120]
[349230915,1737051038667,-200.0,0.0003678,120]
[349230917,1737051038676,-13267.25601255,0.00036782,120]
[349230919,1737051038685,-13456.71670797,0.00036783,120]
[349230921,1737051038694,-9108.1304613,0.00036785,120]
[349230923,1737051038704,-13267.25601255,0.00036788,120]
[349230925,1737051038713,-1517.94,0.00036788,2]
[349230927,1737051038722,-461.85201169,0.00036789,120]
[349230929,1737051038731,-6088.14459035,0.00036789,120]
[349230931,1737051038740,-13456.71670797,0.00036793,120]
[349230933,1737051038750,-3391.29193445,0.00036794,120]
[349230935,1737051038760,-2500.0,0.000368,2]
[349230937,1737051038770,-1767.7526,0.000368,2]
[349230939,1737051038779,-200.18680363,0.000368,2]
[349230941,1737051038789,-281.39077542,0.00036802,120]
[349230943,1737051038798,-13267.25601255,0.00036804,120]
[349230945,1737051038808,-281.39077542,0.00036805,120]
[349230947,1737051038817,-200.0,0.00036806,120]
[349230949,1737051038826,-110343.90323576,0.0003681,120]
[349230951,1737051038836,-1025.00009104,0.00036812,120]
[349230953,1737051038845,-110343.90323576,0.00036813,120]
[349230955,1737051038855,-200.18680361,0.00036814,2]
[349230957,1737051038864,-1000.0,0.00036815,2]
[349230959,1737051038874,-1000.0,0.00036815,2]
[349230961,1737051038883,-1000.0,0.00036815,2]
[349230963,1737051038893,-1000.0,0.00036815,2]
[349230965,1737051038904,-1000.0,0.00036815,2]
[349230967,1737051038917,-1000.0,0.00036815,2]
[349230969,1737051038927,-1000.0,0.00036815,2]
[349230970,1737051038937,-1000.0,0.00036815,2]
[349230972,1737051038946,-1000.0,0.00036815,2]
[349230973,1737051038955,-1000.0,0.00036815,2]
[349230974,1737051038964,-1000.0,0.00036815,2]
[349230975,1737051038973,-1000.0,0.00036815,2]
[349230976,1737051038982,-1000.0,0.00036815,2]
[349230977,1737051038990,-1000.0,0.00036815,2]
[349230978,1737051039000,-1000.0,0.00036815,2]
[349230979,1737051039009,-1000.0,0.00036815,2]
[349230980,1737051039018,-1000.0,0.00036815,2]
[349230981,1737051039027,-1000.0,0.00036815,2]
[349230982,1737051039037,-1000.0,0.00036815,2]
[349230984,1737051039046,-1000.0,0.00036815,2]
[349230986,1737051039056,-1000.0,0.00036815,2]
[349230988,1737051039066,-1000.0,0.00036815,2]
[349230990,1737051039077,-1000.0,0.00036815,2]
[349230992,1737051039087,-1000.0,0.00036815,2]
[349230994,1737051039098,-1000.0,0.00036815,2]
[349230996,1737051039109,-1000.0,0.00036815,2]
[349230998,1737051039119,-1000.0,0.00036815,2]
[349231000,1737051039129,-1000.0,0.00036815,2]
[349231002,1737051039140,-1000.0,0.00036815,2]
[349231004,1737051039152,-1000.0,0.00036815,2]
[349231006,1737051039162,-1000.0,0.00036815,2]
[349231008,1737051039172,-293.8056,0.00036815,2]
[349231010,1737051039182,-13456.71670797,0.00036817,120]
[349231012,1737051039192,-6088.14459035,0.0003682,120]
[349231014,1737051039201,-461.85201169,0.0003682,120]
[349231016,1737051039210,-461.85201169,0.00036824,120]
[349231018,1737051039225,-461.85201169,0.00036824,120]
[349231020,1737051039234,-13456.71670797,0.00036828,120]
[349231022,1737051039244,-200.18680361,0.00036829,2]
[349231024,1737051039254,-13267.25601255,0.00036832,120]
[349231026,1737051039264,-706192.68441778,0.00036837,120]
[349231028,1737051039274,-3391.29193445,0.00036838,120]
[349231030,1737051039283,-9108.1304613,0.0003684,120]
[349231032,1737051039293,-485228.42760067,0.00036841,120]
[349231034,1737051039305,-2663.27874516,0.00036841,120]
[349231037,1737051039324,-9145.74957884,0.00036841,120]
[349231115,1737051040036,-19477.93655241,0.00036841,120]
[349231117,1737051040048,-1316.21000001,0.00036841,120]
[349231119,1737051040060,-376.517365,0.00036841,120]
[349231129,1737051040151,-286.25286702,0.00036841,120]
[349231132,1737051040163,-86128.75547767,0.00036841,120]
[349231135,1737051040185,-12247.73351101,0.00036841,120]
[349231138,1737051040205,-5917.26033186,0.00036841,120]
[349231140,1737051040219,-603.34699925,0.00036841,120]
[349231143,1737051040230,-2913.83004723,0.00036841,120]
[349231154,1737051040327,-411.58350639,0.00036841,120]
[349231168,1737051040465,-79475.80183526,0.00036841,120]
[349231170,1737051040475,-200.18680361,0.00036843,2]
[349231172,1737051040484,-281.39077542,0.00036846,120]
[349231174,1737051040494,-4372.40844241,0.00036848,120]
[349231177,1737051040508,-4735.72201889,0.00036848,120]
[349231179,1737051040517,-461.85201169,0.00036848,120]
[349231181,1737051040527,-200.0,0.00036853,120]
[349231183,1737051040537,-9373.17790833,0.00036856,120]
[349231185,1737051040552,-4083.53879964,0.00036856,120]
[349231187,1737051040561,-1025.00009104,0.00036856,120]
[349231189,1737051040572,-581.67075125,0.00036857,120]
[349231426,1737051042944,-147552.6653161,0.00036857,120]
[349231448,1737051043059,-988.73273918,0.00036857,120]
[349231451,1737051043070,-1625.26059212,0.00036857,120]
[349231471,1737051043171,-555444.35501913,0.00036857,120]
[349231473,1737051043180,-200.18680361,0.00036857,2]
[349231475,1737051043191,-281.39077542,0.00036863,120]
[349231477,1737051043200,-121252.07584247,0.00036864,120]
[349231479,1737051043212,-1319.63744278,0.00036864,120]
[349231481,1737051043226,-2324.0453042,0.00036864,120]
[349231763,1737051046134,-50237.87261767,0.00036864,120]
[349231765,1737051046145,-86768.39151391,0.00036864,120]
[349231767,1737051046157,-389.60766,0.00036864,120]